bitfinex/quotes_ETHUSD_20250908
["timestamp","ask_amount","ask_price","bid_price","bid_amount"]
[1757297981895,0.116,4286.9,4286.8,1.2736]
[1757297982096,0.116,4286.9,4286.8,3.60634237]
[1757297982292,0.116,4286.9,4286.8,1.2736]
[1757297984031,0.116,4286.9,4286.8,3.60634237]
[1757297984614,0.116,4286.9,4286.8,1.2736]
[1757297985318,0.36085566,4286.9,4286.8,0.027]
[1757297985632,0.36085566,4286.9,4286.8,0.7819]
[1757297985830,0.36085566,4286.9,4286.8,0.3144]
[1757297986037,0.116,4286.9,4286.8,0.7819]
[1757297987441,2.33242003,4287.4,4286.8,1.2736]
[1757297987641,2.33253031,4287.2,4286.8,1.2736]
[1757297987944,2.33253031,4287.2,4286.8,0.7819]
[1757297988244,2.33253031,4287.2,4286.8,0.3144]
[1757297988543,0.23325303,4287.1,4286.9,0.4675]
[1757297988744,2.565855,4287.1,4286.8,0.027]
[1757297989210,2.33267572,4287.0,4286.8,0.027]
[1757297989841,2.56584859,4287.1,4286.8,0.027]
[1757297990047,0.48983205,4287.0,4286.8,0.027]
[1757297990441,0.48983205,4287.0,4286.9,0.2874]
[1757297990746,2.33261783,4287.1,4286.9,0.2874]
[1757297991144,2.33263354,4287.0,4286.9,0.2874]
[1757297993417,0.116,4287.0,4286.9,0.4688]
[1757297993612,0.116,4287.0,4286.8,0.5201]
[1757297993950,0.116,4287.0,4286.9,0.8072]
[1757297994450,0.116,4287.0,4286.9,1.276]
[1757297995114,0.116,4287.0,4286.9,0.7829]
[1757297996368,0.116,4287.0,4286.9,1.276]
[1757297997076,0.64141756,4287.0,4286.8,0.027]
[1757297997235,2.33309179,4286.2,4285.8,0.022]
[1757297997436,0.49639525,4286.1,4285.8,0.4908]
[1757297997759,2.33311585,4286.2,4286.0,0.3141]
[1757297997944,2.8295186,4286.1,4286.0,0.3141]
[1757297998771,2.33320221,4286.0,4285.8,0.022]
[1757297998979,2.61619197,4285.9,4285.8,0.022]
[1757297999145,3.11258722,4285.9,4285.8,0.022]
[1757297999338,2.82379197,4285.9,4285.8,0.022]
[1757297999738,3.32018722,4285.9,4285.8,0.022]
[1757297999980,2.82379197,4285.9,4285.8,0.022]
[1757298000282,6.81588722,4285.9,4285.8,0.022]
[1757298000445,15.19724985,4285.9,4285.8,0.022]
[1757298000634,9.20559453,4285.9,4285.8,0.022]
[1757298000832,7.82462761,4285.9,4285.8,0.022]
[1757298001238,9.07557211,4285.9,4285.8,0.022]
[1757298001470,7.82462761,4285.9,4285.8,0.022]
[1757298002460,7.95460454,4285.9,4285.8,0.022]
[1757298002787,15.19382695,4285.9,4285.8,0.022]
[1757298003161,13.81628293,4285.9,4285.8,0.022]
[1757298003391,13.94617849,4285.9,4285.8,0.022]
[1757298003979,15.19374558,4285.9,4285.8,0.022]
[1757298004180,13.94617849,4285.9,4285.8,1e-08]
[1757298004690,8.39012317,4285.9,4285.8,1e-08]
[1757298004907,9.20038129,4285.9,4285.8,1e-08]
[1757298005065,6.32932761,4285.9,4285.8,0.31410001]
[1757298005389,6.53692761,4285.9,4285.8,1e-08]
[1757298005587,6.32932761,4285.9,4285.8,1e-08]
[1757298006270,7.32892761,4285.9,4285.8,1e-08]
[1757298007064,8.72592761,4285.9,4285.8,1e-08]
[1757298007282,7.32892761,4285.9,4285.8,1e-08]
[1757298008570,7.82462761,4285.9,4285.8,1e-08]
[1757298008766,8.26022761,4285.9,4285.8,1e-08]
[1757298009094,7.82462761,4285.9,4285.8,1e-08]
[1757298009254,8.26022761,4285.9,4285.8,1e-08]
[1757298009454,7.82462761,4285.9,4285.8,1e-08]
[1757298010264,7.32892761,4285.9,4285.8,1e-08]
[1757298011954,7.12132761,4285.9,4285.8,1e-08]
[1757298012154,7.12132761,4285.9,4285.8,0.31410001]
[1757298013151,7.12132761,4285.9,4285.8,1e-08]
[1757298014004,7.33122761,4285.9,4285.8,1e-08]
[1757298014552,7.12132761,4285.9,4285.8,1e-08]
[1757298014758,4.78809539,4285.9,4285.8,0.78290001]
[1757298014960,2.33321586,4286.0,4285.8,1.27600001]
[1757298015168,2.33317778,4286.0,4285.8,0.31410001]
[1757298015369,2.44930814,4285.8,4285.5,0.45380371]
[1757298015656,2.44930814,4285.8,4285.0,2.33371932]
[1757298015657,2.33330286,4285.8,4285.0,2.33371932]
[1757298016016,0.23333029,4285.8,4285.7,0.3141]
[1757298016242,2.33319043,4286.0,4285.7,0.3141]
[1757298016396,0.792,4286.0,4285.7,0.3141]
[1757298016591,7.06,4286.0,4285.7,0.3141]
[1757298016833,7.06,4286.0,4285.7,2.64743736]
[1757298017327,7.06,4286.0,4285.8,0.002]
[1757298017501,7.06,4286.0,4285.8,0.9639]
[1757298017709,7.06,4286.0,4285.9,1.276]
[1757298017894,8.0686,4286.0,4285.8,0.002]
[1757298018096,3.0,4285.9,4285.8,0.002]
[1757298018396,3.93632306,4285.9,4285.8,0.002]
[1757298018606,7.85985528,4285.9,4285.8,0.002]
[1757298018915,7.85985528,4285.9,4284.9,0.002]
[1757298018916,3.12572228,4285.0,4284.9,0.002]
[1757298019239,6.34205659,4285.0,4284.9,0.002]
[1757298019414,7.57825659,4285.0,4284.9,0.002]
[1757298019617,8.07667965,4285.0,4284.9,0.002]
[1757298019831,0.792,4283.9,4283.1,0.4688]
[1757298020042,2.33440974,4283.8,4283.2,0.4688]
[1757298020206,2.33443104,4283.7,4282.9,0.4688]
[1757298020545,0.792,4284.2,4283.6,0.3141]
[1757298020748,2.33432341,4283.9,4283.6,0.3141]
[1757298021046,3.12619942,4284.2,4283.6,0.3141]
[1757298021251,0.792,4283.8,4282.8,2.42841486]
[1757298021417,2.64683715,4284.1,4282.8,2.42841486]
[1757298021418,0.792,4284.0,4283.7,0.3141]
[1757298021760,0.792,4284.1,4283.7,0.3141]
[1757298021934,0.792,4284.1,4283.8,0.4931]
[1757298022106,0.792,4284.1,4284.0,0.3141]
[1757298022450,1.42219595,4284.1,4284.0,0.3141]
[1757298022656,0.49842306,4284.6,4284.0,0.3141]
[1757298022812,2.33417678,4284.2,4284.0,0.3141]
[1757298023128,0.792,4284.3,4284.0,0.8072]
[1757298024033,2.33410519,4284.3,4284.0,0.8072]
[1757298024231,2.33421255,4284.1,4283.5,0.4945]
[1757298024438,0.23342126,4284.0,4283.5,0.4945]
[1757298024644,0.23342126,4284.0,4283.6,0.9304]
[1757298024645,1.793,4283.9,4283.6,0.9304]
[1757298024937,1.793,4283.9,4283.8,0.311]
[1757298025142,1.793,4283.9,4283.8,0.8055]
[1757298026149,1.793,4283.9,4283.8,1.2414]
[1757298026350,1.793,4283.9,4283.8,0.025]
[1757298026525,1.99564213,4283.9,4283.8,0.025]
[1757298027410,2.30744213,4283.9,4283.8,0.025]
[1757298028051,4.64176365,4283.9,4283.8,0.025]
[1757298028209,5.08726365,4283.9,4283.8,0.025]
[1757298028624,5.57716365,4283.9,4283.8,0.025]
[1757298028826,6.36916365,4283.9,4283.8,0.025]
[1757298029046,5.87926365,4283.9,4283.8,0.025]
[1757298029221,5.43376365,4283.9,4283.8,0.025]
[1757298029631,2.78764213,4283.9,4283.8,0.025]
[1757298029829,2.78764213,4283.9,4283.8,0.311]
[1757298030159,5.87926365,4283.9,4283.8,0.025]
[1757298030349,10.30516365,4283.9,4283.8,0.025]
[1757298031632,10.97084213,4283.9,4282.5,0.7013549]
[1757298031869,2.33509603,4282.5,4281.9,0.4945]
[1757298032077,5.729,4282.4,4281.9,0.4945]
[1757298032375,5.729,4282.3,4282.0,0.4945]
[1757298032684,5.732,4282.2,4282.0,0.4945]
[1757298032865,3.939,4282.1,4282.0,0.4945]
[1757298033065,3.939,4282.1,4281.6,0.003]
[1757298033486,3.939,4282.1,4282.0,0.286]
[1757298033711,3.939,4282.1,4282.0,1.2164]
[1757298034191,3.939,4282.1,4282.0,0.286]
[1757298034371,3.939,4282.1,4282.0,0.7805]
[1757298034774,3.939,4282.1,4282.0,0.286]
[1757298035562,3.939,4282.1,4282.0,0.7825]
[1757298035563,3.942,4282.1,4282.0,0.7825]
[1757298035920,3.942,4282.1,4282.0,1.2184]
[1757298036497,3.942,4282.1,4282.0,0.288]
[1757298037261,3.942,4282.1,4282.0,0.7825]
[1757298038005,1.794,4282.8,4282.7,2.33497559]
[1757298038296,3.942,4282.8,4282.7,0.286]
[1757298038708,3.942,4282.8,4282.3,0.4945]
[1757298039016,4.2538,4282.8,4282.3,0.4945]
[1757298039522,5.13661133,4282.8,4282.3,0.4945]
[1757298039718,4.82481133,4282.8,4282.4,2.3351024]
[1757298040020,3.942,4282.8,4282.4,2.3351024]
[1757298040406,0.116,4282.4,4282.0,0.002]
[1757298040613,4.084,4282.3,4282.2,2.33524823]
[1757298040811,1.852,4282.3,4282.2,2.77114823]
[1757298041110,1.852,4282.3,4282.2,3.55164823]
[1757298041347,4.084,4282.3,4282.2,3.55164823]
[1757298042436,3.967,4282.5,4282.4,2.33513917]
[1757298042642,1.794,4283.1,4283.0,2.33481204]
[1757298042941,5.76,4283.1,4283.0,3.55121204]
[1757298043239,5.76,4283.1,4283.0,0.286]
[1757298043442,5.76,4283.1,4283.0,2.62081204]
[1757298043647,5.76,4283.1,4282.8,2.3349179]
[1757298044248,5.76,4283.1,4282.5,3.0]
[1757298044249,5.76,4283.1,4283.0,2.62081204]
[1757298044605,5.76,4283.1,4283.0,3.11531204]
[1757298044859,5.76,4283.1,4283.0,3.55121204]
[1757298046651,5.76,4283.1,4283.0,0.286]
[1757298047751,0.116,4283.0,4282.7,2.33496268]
[1757298047943,0.116,4283.0,4282.8,2.3348952]
[1757298048138,6.7815,4283.1,4282.7,2.33496666]
[1757298048350,6.7815,4283.1,4282.8,2.33491171]
[1757298048952,6.7815,4283.1,4282.9,2.33486634]
[1757298049240,5.76,4283.1,4283.0,2.33481204]
[1757298050113,5.757,4283.1,4283.0,3.55121204]
[1757298051666,1.794,4283.1,4283.0,3.55121204]
[1757298051954,1.397,4285.1,4283.0,3.55121204]
[1757298051955,1.794,4283.7,4283.6,2.33448501]
[1757298052155,1.3084,4284.7,4284.1,2.33419362]
[1757298052357,0.025,4284.8,4284.2,0.4945]
[1757298052566,0.025,4284.8,4284.7,2.33388568]
[1757298052923,3.721,4284.8,4284.2,0.4945]
[1757298053155,0.116,4284.6,4284.5,2.33397068]
[1757298053356,4.4783,4284.8,4284.5,2.33395255]
[1757298053357,4.0328,4284.8,4284.5,2.33395255]
[1757298053557,0.116,4284.5,4283.8,3.0]
[1757298053762,0.116,4284.5,4284.4,2.3340491]
[1757298053972,1.794,4284.6,4284.5,2.33399463]
[1757298054167,2.0875,4284.6,4284.5,2.33399463]
[1757298054374,0.116,4284.5,4283.7,1.19545341]
[1757298054565,2.2591,4284.6,4284.4,2.33400044]
[1757298054765,0.116,4284.1,4283.8,3.4704]
[1757298054961,4.089,4284.1,4284.0,5.65036704]
[1757298055260,4.089,4284.1,4284.0,6.57646704]
[1757298056446,4.089,4284.1,4284.0,6.10606704]
[1757298057276,4.089,4284.1,4284.0,5.65036704]
[1757298058143,4.089,4284.1,4284.0,5.33426704]
[1757298058345,4.089,4284.1,4284.0,5.65036704]
[1757298060286,4.089,4284.1,4284.0,6.57646704]
[1757298060468,3.973,4284.1,4284.0,6.57646704]
[1757298060647,4.084,4284.4,4284.3,2.33410358]
[1757298060848,4.084,4284.4,4284.3,2.65020358]
[1757298064104,4.084,4284.4,4283.3,0.4557]
[1757298064105,5.3105,4284.4,4283.3,0.4557]
[1757298064303,5.3105,4284.4,4283.3,2.33460705]
[1757298064304,2.92191388,4284.3,4283.3,2.33460705]
[1757298064601,0.4095,4283.4,4283.2,2.33470302]
[1757298064805,3.967,4283.3,4283.2,2.33465689]
[1757298065099,4.7256,4283.3,4283.1,4.41705494]
[1757298065314,0.116,4283.1,4283.0,2.33680184]
[1757298065514,0.116,4283.1,4283.0,0.002]
[1757298065714,0.8746,4283.1,4283.0,0.002]
[1757298066197,1.3425,4283.1,4283.0,0.002]
[1757298068291,0.4095,4283.1,4283.0,2.33681204]
[1757298068496,3.965,4283.1,4283.0,2.33677431]
[1757298068695,4.2585,4283.1,4283.0,2.33677431]
[1757298068894,3.965,4283.1,4283.0,2.33677431]
[1757298069072,3.965,4283.1,4283.0,2.65287431]
[1757298069806,4.2585,4283.1,4283.0,2.33677431]
[1757298070279,4.2585,4283.1,4283.0,0.002]
[1757298070464,5.1915,4283.1,4283.0,0.002]
[1757298070865,5.71065,4283.1,4283.0,0.002]
[1757298072814,8.04540753,4283.1,4283.0,0.002]
[1757298073127,8.83740753,4283.1,4283.0,0.002]
[1757298075069,8.37230753,4283.1,4283.0,0.002]
[1757298075306,8.83740753,4283.1,4283.0,0.002]
[1757298075511,6.50265,4283.1,4283.0,0.002]
[1757298075870,8.83740753,4283.1,4283.0,0.002]
[1757298076209,6.50265,4283.1,4283.0,0.002]
[1757298076716,8.83740753,4283.1,4283.0,0.002]
[1757298076905,6.50265,4283.1,4283.0,0.002]
[1757298077398,8.83740753,4283.1,4283.0,0.002]
[1757298079802,5.56965,4283.1,4283.0,0.002]
[1757298080203,6.03475,4283.1,4283.0,0.002]
[1757298081449,4.77765,4283.1,4283.0,0.002]
[1757298081596,0.51915,4283.1,4283.0,2.33681204]
[1757298081800,3.964,4283.1,4283.0,0.3181]
[1757298082314,3.964,4283.1,4283.0,0.002]
[1757298082534,3.964,4283.1,4283.0,0.3181]
[1757298082842,3.965,4283.1,4283.0,0.3181]
[1757298083006,3.965,4283.1,4283.0,0.002]
[1757298083502,3.965,4283.1,4283.0,0.2992]
[1757298083926,5.1343,4283.1,4283.0,0.002]
[1757298085427,4.6735,4283.1,4283.0,0.002]
[1757298085616,3.965,4283.1,4283.0,2.63401204]
[1757298086112,1.793,4283.8,4283.0,1.2159]
[1757298086319,3.965,4283.7,4283.4,2.33458079]
[1757298086521,0.5758,4283.6,4283.4,2.33458079]
[1757298086813,0.5758,4283.6,4283.5,2.63173951]
[1757298087022,3.966,4283.6,4283.5,2.63173951]
[1757298088646,3.966,4283.6,4283.5,0.2972]
[1757298088855,1.793,4283.8,4283.7,2.33443051]
[1757298089058,1.793,4283.8,4283.7,3.54833051]
[1757298089059,5.763,4283.8,4283.7,3.54833051]
[1757298089212,5.763,4283.8,4283.7,3.09003051]
[1757298093056,5.763,4283.8,4283.7,3.54833051]
[1757298093215,5.763,4283.8,4283.7,3.09003051]
[1757298093544,5.763,4283.8,4283.7,2.63163051]
[1757298094126,5.763,4283.8,4283.7,3.09003051]
[1757298094326,5.763,4283.8,4283.7,7.50584076]
[1757298094744,5.763,4283.8,4283.7,3.09003051]
[1757298095050,5.764,4283.8,4283.7,7.50584076]
[1757298095808,3.971,4283.8,4283.7,10.96414076]
[1757298096241,3.971,4283.8,4283.7,11.66519737]
[1757298096427,3.971,4283.8,4283.7,10.96414076]
[1757298096625,3.971,4283.8,4283.7,11.6651646]
[1757298097032,0.001,4283.8,4283.7,11.6651646]
[1757298097988,0.026,4284.8,4284.1,2.33421255]
[1757298098133,0.026,4284.8,4284.7,6.74969593]
[1757298098465,0.026,4284.8,4284.7,8.19153528]
[1757298098674,0.026,4284.8,4284.7,8.64993528]
[1757298100281,0.026,4284.8,4284.7,11.64993528]
[1757298101063,0.026,4284.8,4284.7,12.10823528]
[1757298101266,0.026,4284.8,4284.7,11.64993528]
[1757298101583,0.026,4284.8,4284.7,12.10823528]
[1757298101789,1e-08,4284.8,4284.7,12.10823528]
[1757298101934,1e-08,4284.8,4284.7,12.22423528]
[1757298102336,0.116,4285.7,4284.8,3.0]
[1757298102631,0.05,4285.8,4285.7,5.33334111]
[1757298103156,0.05,4285.8,4285.7,5.63054111]
[1757298103352,0.05,4285.8,4285.7,6.08894111]
[1757298103964,0.05,4285.8,4285.7,6.54724111]
[1757298104174,0.05,4285.8,4285.7,2.63054111]
[1757298104354,0.05,4285.8,4285.7,5.63054111]
[1757298104865,0.05,4285.8,4285.7,6.08894111]
[1757298105182,0.05,4285.8,4285.7,6.54724111]
[1757298105558,0.05,4285.8,4285.7,10.63324111]
[1757298105559,1e-08,4285.8,4285.7,10.63324111]
[1757298106164,1e-08,4285.8,4285.7,11.42524111]
[1757298106786,0.001,4286.4,4285.8,6.12528666]
[1757298106989,0.001,4286.4,4285.8,7.04198666]
[1757298107190,0.001,4286.4,4285.8,7.33918666]
[1757298107354,0.001,4286.4,4286.0,0.792]
[1757298107555,0.001,4286.4,4286.3,14.59950928]
[1757298107756,0.001,4286.4,4286.3,18.86670928]
[1757298107950,0.001,4286.4,4286.3,19.78340928]
[1757298109061,0.001,4286.4,4286.3,15.81340928]
[1757298109269,0.001,4286.4,4286.3,19.78140928]
[1757298111863,0.313,4286.4,4286.3,5.44901448]
[1757298112068,0.001,4286.4,4286.3,9.71121448]
[1757298112279,0.001,4286.4,4286.3,10.16961448]
[1757298112477,0.001,4286.4,4286.3,9.71121448]
[1757298114675,0.001,4286.4,4286.3,10.20511448]
[1757298117332,0.001,4286.4,4286.3,9.41401448]
[1757298117534,0.3036,4286.4,4286.3,5.44901448]
[1757298117703,0.7617,4286.4,4286.3,9.41001448]
[1757298118037,0.3036,4286.4,4286.3,9.41001448]
[1757298118211,0.001,4286.4,4286.3,9.41001448]
[1757298118610,0.001,4286.4,4286.3,9.69631448]
[1757298120314,0.001,4286.4,4286.3,9.40701448]
[1757298120500,0.001,4286.4,4286.3,9.69331448]
[1757298120905,0.3036,4286.4,4286.3,9.40701448]
[1757298121101,0.7617,4286.4,4286.3,9.40701448]
[1757298121512,0.001,4286.4,4286.3,9.40701448]
[1757298121718,0.001,4286.4,4286.3,9.69331448]
[1757298122306,0.001,4286.4,4286.3,9.69131448]
[1757298123003,0.7617,4286.4,4286.3,9.40501448]
[1757298123307,1.2615,4286.4,4286.3,2.33301448]
[1757298123716,1.2615,4286.4,4286.3,5.33301448]
[1757298123916,1.39925,4286.4,4286.3,2.33301448]
[1757298125645,0.001,4286.4,4286.3,11.17691424]
[1757298126009,0.3036,4286.4,4286.3,10.89061424]
[1757298126654,1.2615,4286.4,4286.3,10.89061424]
[1757298127345,1.2615,4286.4,4286.1,3.0]
[1757298127520,1.0739,4286.3,4286.2,2.3330279]
[1757298127923,1.3765,4286.3,4286.2,2.3330279]
[1757298130035,0.7607,4286.3,4286.2,2.3330279]
[1757298130237,1.3765,4286.3,4286.2,2.3330279]
[1757298133023,0.8767,4286.3,4286.2,2.3330279]
[1757298134458,0.116,4286.3,4286.2,2.6193279]
[1757298134771,0.001,4286.4,4286.3,2.33301448]
[1757298136536,0.001,4286.4,4286.3,2.61931448]
[1757298137958,0.001,4286.4,4286.3,5.61931448]
[1757298139571,0.001,4286.4,4286.3,6.57531448]
[1757298139779,0.001,4286.4,4286.3,15.84116458]
[1757298144530,1e-08,4286.9,4286.8,2.33274237]
[1757298144738,1e-08,4286.9,4286.8,9.40074237]
[1757298144937,1e-08,4286.9,4286.8,5.44874237]
[1757298145155,0.29890001,4286.9,4286.8,5.44874237]
[1757298145362,0.75540001,4286.9,4286.8,5.44874237]
[1757298146270,1.20750001,4286.9,4286.8,2.33274237]
[1757298146454,1.32350001,4286.9,4286.8,2.33274237]
[1757298151090,1.32350001,4286.9,4286.4,2.33290872]
[1757298151381,1.04095,4286.8,4286.7,2.33279679]
[1757298151539,1.2075,4286.8,4286.7,2.33279679]
[1757298152875,2.9995,4286.8,4286.7,2.33279679]
[1757298154553,0.116,4286.7,4286.2,2.33304331]
[1757298154884,0.2989,4286.3,4286.2,2.33304331]
[1757298155067,1.2075,4286.3,4286.2,2.33304331]
[1757298155635,1.2075,4286.3,4285.9,0.7006931]
[1757298155838,0.9086,4286.2,4285.9,0.7006931]
[1757298156157,4.4015,4286.2,4285.9,2.33318847]
[1757298156467,0.2989,4286.0,4285.9,2.33323222]
[1757298156876,0.7554,4286.0,4285.9,2.33323222]
[1757298157456,0.2989,4286.0,4285.9,2.33323222]
[1757298157674,0.7554,4286.0,4285.9,2.33323222]
[1757298158250,0.4521,4286.7,4286.5,2.33289318]
[1757298158448,4.2439,4286.6,4286.4,2.33295408]
[1757298158742,4.2439,4286.6,4286.4,4.41032437]
[1757298158743,0.4565,4286.5,4286.4,4.41032437]
[1757298159260,0.7554,4286.5,4286.4,6.74328442]
[1757298162881,0.7554,4286.5,4286.4,4.41032437]
[1757298163258,0.7554,4286.5,4286.4,6.74328442]
[1757298163573,0.7554,4286.5,4286.4,2.33296005]
[1757298163741,0.7554,4286.5,4286.1,2.33311857]
[1757298163742,1.2075,4286.5,4286.3,2.33300023]
[1757298163941,0.4565,4286.4,4286.3,2.33300023]
[1757298164258,0.7554,4286.4,4286.3,2.33300023]
[1757298168676,0.2989,4286.4,4286.3,2.33300023]
[1757298169087,0.116,4286.3,4286.2,6.74339328]
[1757298169281,0.116,4286.3,4286.2,7.04759328]
[1757298169449,0.116,4286.3,4286.2,6.74339328]
[1757298174595,0.116,4286.3,4286.2,7.03569328]
[1757298174907,4.061,4286.6,4286.5,2.33290563]
[1757298175076,4.061,4286.6,4286.5,7.03553]
[1757298179308,4.061,4286.6,4286.5,7.52673]
[1757298179874,4.061,4286.6,4286.5,7.03553]
[1757298180288,4.8127,4286.6,4286.5,6.74323]
[1757298180489,4.3501,4286.6,4286.5,6.74323]
[1757298180919,4.061,4286.6,4286.5,6.74323]
[1757298181614,4.8127,4286.6,4286.5,2.33290563]
[1757298182315,4.061,4286.6,4286.5,2.33290563]
[1757298182623,1.792,4286.8,4286.7,2.33279679]
[1757298182924,5.722,4286.8,4286.7,7.52662116]
[1757298183090,1.792,4286.8,4286.7,10.99642116]
[1757298183296,5.722,4286.8,4286.7,10.99642116]
[1757298183494,5.722,4286.8,4286.7,11.22713919]
[1757298185215,5.722,4286.8,4286.7,10.73593919]
[1757298186297,5.722,4286.8,4286.7,10.44363919]
[1757298187953,6.0111,4286.8,4286.7,10.44363919]
[1757298188151,6.9709,4286.8,4286.6,2.33284126]
[1757298188295,0.9598,4286.7,4286.5,2.33290563]
[1757298188496,5.1759,4286.6,4286.5,2.33285939]
[1757298188811,5.2919,4286.6,4286.5,2.33285939]
[1757298190321,5.88429,4286.6,4286.3,0.002]
[1757298190631,0.4972,4286.5,4286.3,0.002]
[1757298190825,3.927,4286.4,4286.3,0.002]
[1757298191032,5.1759,4286.4,4286.3,0.002]
[1757298192390,4.6787,4286.4,4286.3,2.33501448]
[1757298192537,3.927,4286.4,4286.3,2.33501448]
[1757298193362,3.927,4286.4,4286.3,0.002]
[1757298193670,3.927,4286.4,4286.3,2.33501448]
[1757298195678,3.927,4286.4,4286.3,4.41232437]
[1757298195831,4.6787,4286.4,4286.3,4.41232437]
[1757298198201,3.927,4286.4,4286.3,7.03763885]
[1757298198770,4.6787,4286.4,4286.3,4.41232437]
[1757298199489,5.64377,4286.4,4286.3,4.41232437]
[1757298200389,5.1759,4286.4,4286.3,4.41232437]
[1757298202096,4.6787,4286.4,4286.3,4.41232437]
[1757298202312,4.6787,4286.4,4286.3,0.002]
[1757298202459,7.50886005,4286.4,4286.3,0.002]
[1757298202793,7.72593389,4286.4,4286.3,0.002]
[1757298203203,8.73181459,4286.4,4286.3,0.002]
[1757298203803,10.02382939,4286.4,4286.3,0.002]
[1757298206394,2.50926934,4286.4,4286.3,0.002]
[1757298206601,7.69873389,4286.4,4286.3,0.002]
[1757298206802,7.48166005,4286.4,4286.3,0.002]
[1757298207352,2.44902278,4286.3,4285.9,4.36232437]
[1757298207550,3.921,4286.2,4285.9,4.41032437]
[1757298207846,3.921,4286.1,4285.9,4.41032437]
[1757298208047,2.77427512,4286.6,4286.0,0.2922]
[1757298208197,2.33303283,4286.3,4286.0,0.2922]
[1757298208400,3.921,4286.2,4286.0,0.2922]
[1757298209304,0.116,4286.0,4285.8,4.43732437]
[1757298209623,3.92,4285.9,4285.8,4.43732437]
[1757298209934,3.92,4285.9,4285.8,4.72952437]
[1757298211829,0.116,4286.2,4286.1,2.33312335]
[1757298212007,1.792,4286.5,4286.4,2.33296005]
[1757298212207,1.792,4286.5,4286.4,7.99761402]
[1757298212406,3.686,4286.5,4286.4,10.97428442]
[1757298212821,3.686,4286.5,4286.4,11.67484989]
[1757298218434,3.686,4286.5,4286.4,12.8204898]
[1757298220056,1e-08,4286.9,4286.8,2.33274237]
[1757298220205,1e-08,4286.9,4286.8,7.91203407]
[1757298220401,1e-08,4286.9,4286.8,3.12324237]
[1757298220647,1e-08,4286.9,4286.8,8.67920665]
[1757298223058,1e-08,4286.9,4286.8,12.23570665]
[1757298225455,1.792,4287.2,4286.8,12.23570665]
[1757298225614,0.026,4287.8,4287.2,2.33252472]
[1757298225942,0.026,4287.8,4287.6,5.44830711]
[1757298226146,0.026,4287.8,4287.6,5.74050711]
[1757298226308,2.194,4288.5,4288.4,2.33187202]
[1757298226508,2.194,4288.5,4288.4,8.1800363]
[1757298226708,1.908,4288.6,4288.5,2.33181765]
[1757298226908,1.792,4288.6,4288.5,2.33181765]
[1757298227160,1.792,4288.6,4288.5,2.62401765]
[1757298227527,1.792,4288.6,4288.5,2.33181765]
[1757298230732,1.792,4288.6,4288.5,2.62401765]
[1757298231158,1.792,4288.6,4288.5,2.33181765]
[1757298231445,2.5206,4288.6,4288.5,2.33181765]
[1757298232313,2.5206,4288.6,4288.2,2.33197729]
[1757298232314,2.976,4288.6,4288.2,2.33197729]
[1757298232514,0.116,4288.2,4287.4,3.116]
[1757298232715,4.8148,4288.1,4288.0,2.33208955]
[1757298233010,4.8148,4288.1,4287.4,0.116]
[1757298233011,5.102,4288.1,4287.1,5.55596428]
[1757298233238,0.8977,4288.0,4287.4,2.3324114]
[1757298233425,0.116,4287.6,4287.5,2.33236151]
[1757298233747,5.2258,4287.6,4287.5,2.33236151]
[1757298234607,4.3281,4287.6,4287.5,2.33236151]
[1757298234811,4.034,4287.6,4287.5,2.33236151]
[1757298235054,4.034,4287.6,4287.5,8.20162579]
[1757298236142,0.116,4287.6,4287.5,11.6677258]
[1757298236360,0.116,4288.1,4287.7,2.33221592]
[1757298236567,0.116,4288.1,4288.0,2.33208955]
[1757298237047,0.4101,4288.1,4288.0,2.33208955]
[1757298237217,4.3281,4288.1,4288.0,2.33208955]
[1757298237417,4.7741,4288.1,4288.0,2.33208955]
[1757298237928,4.3281,4288.1,4288.0,2.33208955]
[1757298238123,4.7741,4288.1,4288.0,2.33208955]
[1757298238530,5.2258,4288.1,4288.0,2.33208955]
[1757298238763,5.2268,4288.1,4288.0,2.33208955]
[1757298239857,4.7751,4288.1,4288.0,2.33208955]
[1757298240682,0.117,4288.1,4288.0,5.64538955]
[1757298240954,0.001,4288.1,4288.0,6.11418955]
[1757298241119,0.001,4288.1,4288.0,6.56428955]
[1757298242051,0.001,4288.1,4288.0,6.11418955]
[1757298242635,0.001,4288.1,4288.0,6.56428955]
[1757298243948,0.001,4288.1,4288.0,7.26450183]
[1757298247046,0.001,4288.1,4288.0,7.26450183]
[1757298247429,0.001,4288.1,4288.0,6.81440183]
[1757298248477,0.001,4288.1,4288.0,6.34560183]
[1757298248760,0.001,4288.1,4288.0,9.95030183]
[1757298248961,0.2951,4288.1,4288.0,6.03230183]
[1757298249482,1.1928,4288.1,4288.0,3.03230183]
[1757298249770,1.1928,4288.1,4286.9,2.33267293]
[1757298249771,1.70378,4288.1,4287.1,5.55796428]
[1757298249938,1.70378,4288.1,4287.5,3.03275308]
[1757298249939,0.8977,4288.0,4287.5,3.03275308]
[1757298250270,0.8977,4288.0,4287.5,2.33231029]
[1757298250571,0.2941,4287.6,4287.5,2.33231029]
[1757298250866,1.1918,4287.6,4287.5,2.33231029]
[1757298252234,1.70268,4287.6,4287.2,2.33251292]
[1757298252458,0.8977,4287.5,4287.3,2.33246121]
[1757298252662,0.4517,4287.5,4287.4,2.33241591]
[1757298252864,0.4517,4287.5,4287.2,2.33248349]
[1757298252865,0.116,4287.4,4287.2,2.33248349]
[1757298253028,0.7458,4287.3,4287.2,2.33248349]
[1757298253236,1.1918,4287.3,4287.2,2.33248349]